Cogmind - Beta 17 @@@ ROGUE MODE // 2026.07.15 @ 19:13:12 Player: pinbox Result: Destroyed by Y-45 Defender with Heavy Assault Rifle Performance ------------- Evolutions (0) 0 Regions Visited (3) 600 Robots Destroyed (30) 150 Value Destroyed (536) 536 Prototype IDs (0) 0 Alien Tech Used (0) 0 Bonus (0) 0 TOTAL SCORE: 1286 Bonus ------- None Cogmind --------- Core Integrity 0/250 Matter 260/300 Energy 100/100 System Corruption 1% Temperature Cool (0) Movement Rolling (105) Ox1 Location -9/Recycling Parts ------- > --- POWER (1) -------- (None) > --- PROPULSION (2) --- Armored Wheel > --- UTILITY (2) ------ Medium Storage Unit Structural Scanner > --- WEAPON (2) ------- Beam Rifle Particle Cannon > --- INVENTORY (10) --- Terrain Scanner Grenade Launcher Peak State ------------ > --- POWER ------------ Light Nuclear Core > --- PROPULSION ------- Light Treads Light Treads > --- UTILITY ---------- Medium Storage Unit Seismic Detector > --- WEAPON ----------- Particle Gun Assault Rifle > --- INVENTORY -------- Grenade Launcher [Rating: 10] Favorites ----------- Power Light Nuclear Core Engine Ion Engine Power Core Light Nuclear Core Propulsion Light Treads Treads Light Treads Wheel Armored Wheel Utility Medium Storage Unit Device Seismic Detector Storage Medium Storage Unit Protection Light Armor Plating Weapon Assault Rifle Energy Gun Particle Gun Energy Cannon Particle Cannon Ballistic Gun Assault Rifle Launcher Grenade Launcher Build | -11 -10 -10 -9 ------- Run | Yrd Mat Sub Rec Slots Evolved . | . . . . Power . | . . . . Propulsion . | . . . . Utility . | . . . . Weapon . | . . . . Parts Attached 20 | 7 8 1 4 Power 2 | 1 1 . . Engine 1 | 1 . . . Core 1 | . 1 . . Reactor . | . . . . Propulsion 4 | 2 1 . 1 Treads 3 | 2 1 . . Leg . | . . . . Wheel 1 | . . . 1 Hover . | . . . . Flight . | . . . . Utility 5 | 2 3 . . Device 2 | 1 1 . . Storage 2 | 1 1 . . Processor . | . . . . Hackware . | . . . . Protection 1 | . 1 . . Artifact . | . . . . Weapon 9 | 2 3 1 3 Energy Gun 4 | 1 1 . 2 Energy Cannon 1 | . . . 1 Ballistic Gun 3 | 1 2 . . Ballistic Cannon . | . . . . Launcher 1 | . . 1 . Special Weapon . | . . . . Impact Weapon . | . . . . Slashing Weapon . | . . . . Piercing Weapon . | . . . . Special Melee Weapon . | . . . . Unidentified Prototypes . | . . . . Parts Lost 9 | . 3 6 . Power 2 | . 1 1 . Propulsion 2 | . . 2 . Utility 2 | . 1 1 . Weapon 3 | . 1 2 . Highest Loss Streak 5 | . 2 5 . To Critical Strikes . | . . . . Average Backups 1 | . . 3 2 Power . | . . . . Propulsion . | . . . . Utility . | . . 2 1 Weapon . | . . . 1 Tool/Special . | . . . . Unused Backups 1 | . . . 1 Power . | . . . . Propulsion . | . . . . Utility 1 | . . . 1 Weapon . | . . . . Tool/Special . | . . . . Average Slot Usage (%) 86 | . 99 80 51 Engine 4 | . 6 . . Core 5 | . 7 11 . Treads 20 | . 28 17 . Wheel 1 | . . . 7 Device 8 | . 8 3 13 Storage 14 | . 14 14 14 Protection 4 | . 5 8 . Energy Gun 8 | . 7 11 9 Energy Cannon 1 | . . . 6 Ballistic Gun 14 | . 20 12 . Peak Build Rating 10 | 7 10 10 8 Average Rating 7 | 5 8 7 5 On Entrance 4 | . 7 10 1 Avg Prop Armor Cover (%) . | . . . . Naked Turns . | . . . . Heaviest Build 23 | 13 23 23 18 Greatest Support 40 | 40 40 40 12 Greatest Overweight (x) 5 | . . 4 5 Average Overweight (x) . | . . 1 1 Largest Inventory Capacity 10 | 8 10 10 10 Average Capacity 9 | 7 9 10 10 Most Carried 4 | . 3 4 3 Average Carried 1 | . . 3 2 Final Capacity 10 | 8 10 10 10 Final Carried 3 | . 3 3 2 Class Distribution -------------------- 95% | Mutant 4% | Scavenger-Mutant Dominant Class ---------------- Mutant | -10/Materials Mutant | -10/Subcaves Mutant | -9/Recycling Resources | -11 -10 -10 -9 ----------- Run | Yrd Mat Sub Rec Matter Collected 844 | 278 262 61 243 Remotely . | . . . . Salvage Created 794 | 95 599 100 . Parts 64 | 13 42 9 . Haulers Intercepted 2 | . 2 . . Recyclers Shooed 1 | 1 . . . Parts Field Recycled . | . . . . Retrieved Matter . | . . . . Parts Self-Destructed 12 | . . 12 . Prevented . | . . . . Parts Restored . | . . . . Kills | -11 -10 -10 -9 ------- Run | Yrd Mat Sub Rec Combat Hostiles Destroyed 16 | . 11 5 . Guns 15 | . 11 4 . AOE 1 | . . 1 . Classes Destroyed 9 | 1 6 2 . Worker 2 | . 2 . . Builder 1 | . 1 . . Tunneler 6 | 5 1 . . Hauler 2 | . 2 . . Turret 1 | . . 1 . Watcher 2 | . 2 . . Swarmer 7 | . 3 4 . Grunt 8 | . 8 . . Subdweller 1 | . . 1 . Best Kill Streak 6 | 3 6 4 . Combat Bots Only 5 | . 5 4 . Max Kills in Single Turn 2 | 1 1 2 . Gunslinging 1 | . . 1 . Exploded 1 | . . 1 . Melee . | . . . . Uniques/NPCs Destroyed . | . . . . Combat | -11 -10 -10 -9 -------- Run | Yrd Mat Sub Rec Hostile Shots Fired 202 | . 58 141 3 Missed 73 | . 14 58 1 Hits 129 | . 44 83 2 Projectile 129 | . 44 83 2 Critical Strikes 5 | . 3 1 1 Damage Taken 1341 | . 631 681 29 Core 263 | . 79 155 29 Absorbed by Shields . | . . . . Core Remaining (%) 100 | 100 . . . Volleys Fired 126 | 20 63 43 . Largest 2 | 2 2 2 . Hottest 85 | 60 85 85 . Shots Fired 228 | 40 122 66 . Gun 226 | 40 122 64 . Cannon . | . . . . Launcher 2 | . . 2 . Special . | . . . . Kinetic 166 | 20 105 41 . Thermal 60 | 20 17 23 . Explosive 2 | . . 2 . Electromagnetic . | . . . . Robot Hit Streak 17 | 4 7 17 . Robot Miss Streak 6 | 4 6 5 . Penetration Max . | . . . . Secondary Targets 2 | . 1 1 . Max Gunslinging Chain 1 | . 1 1 . Shots Hit Robots 134 | 21 70 43 . Core Hits 51 | 8 33 10 . Critical Kills . | . . . . Critical Parts Destroyed 2 | . 2 . . Critical Strikes 2 | . 2 . . Destroy 2 | . 2 . . Melee Attacks . | . . . . Impact . | . . . . Slashing . | . . . . Piercing . | . . . . Sneak Attacks . | . . . . Combat Hostiles . | . . . . Follow-up Attacks . | . . . . Damage Inflicted 1555 | 210 892 453 . Guns 1502 | 210 892 400 . Cannons . | . . . . Explosions 53 | . . 53 . Melee . | . . . . Ramming . | . . . . Kinetic 1017 | 80 757 180 . Thermal 485 | 130 135 220 . Explosive 53 | . . 53 . Electromagnetic . | . . . . Impact . | . . . . Slashing . | . . . . Piercing . | . . . . Highest Corruption 1 | . 1 1 1 Average Corruption 1 | . 1 1 1 Corruption Purged . | . . . . Corruption Blocked . | . . . . Effects 19 | . 14 2 3 Message Errors 5 | . 4 . 1 Matter Fused 4 | . 4 . . Heat Flow Errors 4 | . 2 . 2 Energy Discharges 1 | . . 1 . Data Loss (minor) 2 | . 2 . . Data Loss (major) 3 | . 2 1 . Overload Shots . | . . . . Overflow Damage . | . . . . Projectiles . | . . . . Explosions . | . . . . Melee . | . . . . Knockbacks . | . . . . Impact . | . . . . Kinetic . | . . . . Secondary . | . . . . Self-Inflicted Damage 75 | . . 75 . Shots 2 | . . 2 . Rammed . | . . . . Targets Rammed . | . . . . Kicked . | . . . . Crushed . | . . . . Highest Temperature 259 | 40 252 5 259 Average Temperature 57 | 19 66 5 106 Received Heat Transfer 525 | . 336 162 27 Siege Activations . | . . . . Martial Activations . | . . . . Shielding Activations . | . . . . Robots Disrupted . | . . . . Combat Hostiles . | . . . . Robots Corrupted . | . . . . Combat Hostiles . | . . . . Parts Fried . | . . . . Impact Corruptions . | . . . . Robots Melted . | . . . . Combat Hostiles . | . . . . Parts Melted . | . . . . Heat Transferred 1151 | 300 333 518 . Parts Sabotaged . | . . . . Parts Stolen . | . . . . Parts Stripped . | . . . . Power Chain Reactions . | . . . . Alert | -11 -10 -10 -9 ------- Run | Yrd Mat Sub Rec Maximum Alert Level . | . . . . Low Security (%) 100 | 100 100 . 100 Level 1 . | . . . . Level 2 . | . . . . Level 3 . | . . . . Level 4 . | . . . . Level 5 . | . . . . High Security . | . . . . Max Security . | . . . . Peak Influence 136 | 10 136 . 16 Initial 16 | . . . 16 Average 21 | 1 30 . . Influence Increases 610 | 25 377 205 3 Destroy 0b10 Robot/C 320 | . 220 100 . Destroy 0b10 Robot/NC 65 | 25 40 . . Destroy Leader 58 | . 58 . . Successful Hack 61 | . 58 . 3 Destroy Structure 1 | . 1 . . Lose Combat Pursuer 105 | . . 105 . Influence Decreases 610 | 25 377 170 38 Entered New Map 19 | . . . 19 Time Decay 501 | 25 347 110 19 Lost Part 90 | . 30 60 . Squads Dispatched 1 | . 1 . . Investigation . | . . . . Extermination . | . . . . Reinforcement 1 | . 1 . . Assault . | . . . . Garrison . | . . . . Intercept . | . . . . Searches Triggered . | . . . . Construction Impeded . | . . . . Haulers Reinforced . | . . . . Active Scanning Responses . | . . . . Cargo Convoy Interrupts . | . . . . Stealth | -11 -10 -10 -9 --------- Run | Yrd Mat Sub Rec Distress Signals . | . . . . Communications Jammed . | . . . . Distress Signals . | . . . . Times Spotted 31 | . 18 11 2 Peak Tracking Total 6 | . 3 6 2 Tactical Retreats 4 | . . 4 . Traps | -11 -10 -10 -9 ------- Run | Yrd Mat Sub Rec Traps Triggered 3 | . 3 . . Indirectly . | . . . . Trap Hack Attempts . | . . . . Triggered . | . . . . Disarmed . | . . . . Reprogrammed . | . . . . Reused . | . . . . Traps Extracted . | . . . . Installed . | . . . . Triggered . | . . . . Machines | -11 -10 -10 -9 ---------- Run | Yrd Mat Sub Rec Machines Disabled 2 | . . 2 . Max in Single Turn 1 | . . 1 . Machines Repaired . | . . . . Machines Dismantled . | . . . . Machines Sabotaged . | . . . . Overloaded Fab Kills . | . . . . Hacking | -11 -10 -10 -9 --------- Run | Yrd Mat Sub Rec Machines Accessed 15 | . 6 . 9 Terminals 9 | . 6 . 3 Fabricators . | . . . . Repair Stations . | . . . . Recycling Units 6 | . . . 6 Scanalyzers . | . . . . Garrison Access . | . . . . Total Hacks 35 | . 18 . 17 Successful 24 | . 17 . 7 Failed 11 | . 1 . 10 Catastrophic 2 | . . . 2 Database Lockouts . | . . . . Manual 24 | . 18 . 6 Terminals 23 | . 18 . 5 Fabricators . | . . . . Repair Stations . | . . . . Recycling Units 12 | . . . 12 Scanalyzers . | . . . . Garrison Access . | . . . . Terminal Hacks 5 | . 5 . . Terminal Index 1 | . 1 . . Zone Layout 4 | . 4 . . Fabricator Hacks . | . . . . Repair Station Hacks . | . . . . Recycling Unit Hacks 6 | . . . 6 Report Inventory 1 | . . . 1 Retrieve Components 5 | . . . 5 Scanalyzer . | . . . . Garrison Access Hacks . | . . . . Unauthorized Hacks 13 | . 12 . 1 Terminals 12 | . 12 . . Botnet 6 | . 6 . . Skim 6 | . 6 . . Fabricators . | . . . . Repair Stations . | . . . . Recycling Units 1 | . . . 1 Recyclers 1 | . . . 1 Scanalyzers . | . . . . Garrison Access . | . . . . Data Cores Recovered . | . . . . Used . | . . . . Hacking Detections 11 | . 5 . 6 Full Trace Events . | . . . . Feedback Events . | . . . . Feedback Blocked . | . . . . Robot Schematics Acquired . | . . . . Robots Built . | . . . . Authchips . | . . . . Time . | . . . . Total Robot Build Rating . | . . . . Part Schematics Acquired . | . . . . Parts Built . | . . . . Authchips . | . . . . Time . | . . . . Total Part Build Rating . | . . . . Part Studies Acquired . | . . . . Parts Repaired . | . . . . Time . | . . . . Parts Recycled . | . . . . Recycled Matter . | . . . . Retrieved Matter . | . . . . Retrieved Components 11 | . . . 11 Parts Scanalyzed . | . . . . Part Schematics Acquired . | . . . . Parts Damaged . | . . . . Bothacking | -11 -10 -10 -9 ------------ Run | Yrd Mat Sub Rec Used RIF Installer . | . . . . Robots Hacked . | . . . . Non-combat . | . . . . Combat . | . . . . Robot Hacks Applied . | . . . . Relay Couplers Released . | . . . . Fabnet Peak Effective % . | . . . . Robots Rewired . | . . . . Allies Hacked . | . . . . Hacks Repelled . | . . . . Allies | -11 -10 -10 -9 -------- Run | Yrd Mat Sub Rec Total Allies . | . . . . Largest Group . | . . . . Highest-Rated Group . | . . . . Highest-Rated Ally . | . . . . Total Orders . | . . . . Ally Attacks . | . . . . Total Damage . | . . . . Kills . | . . . . Allies Corrupted . | . . . . Allies Melted . | . . . . Intel | -11 -10 -10 -9 ------- Run | Yrd Mat Sub Rec Active Infowar (turns) 1612 | 13 960 71 568 Structural 686 | . 47 71 568 Seismic 926 | 13 913 . . Robot Analysis Total . | . . . . Derelict Logs Recovered . | . . . . Drone Launches . | . . . . Drone Recoveries . | . . . . Exploration | -11 -10 -10 -9 ------------- Run | Yrd Mat Sub Rec Turns Passed 2740 | 189 1669 300 582 Spaces Moved 1366 | 80 810 63 413 Core 152 | 4 . 13 135 Treads 936 | 76 810 50 . Legs . | . . . . Wheels 278 | . . . 278 Hover . | . . . . Flight . | . . . . Fastest Speed 50 | 50 160 160 105 Average Speed 155 | 154 160 210 138 Slowest Speed 300 | 160 160 250 300 Overloaded Moves . | . . . . Propulsion Burnouts . | . . . . Robots Hopped . | . . . . Potential Cave-ins . | . . . . Cave-ins Triggered . | . . . . Exploration Rate (%) 44 | 6 93 4 73 Regions Visited 3 Branch Regions 2 Pre-discovered Areas . | . . . . Known Exits Taken 1 | . 1 . . Unknown Exits Taken 2 | 1 . 1 . Scrap Searched . | . . . . Spaces Dug . | . . . . Terrain Destroyed 5 | . . 5 . Melee . | . . . . Projectile . | . . . . AOE 5 | . . 5 . Terrain Rammed . | . . . . Walls Destroyed . | . . . . Machines Disabled . | . . . . Actions | -11 -10 -10 -9 --------- Run | Yrd Mat Sub Rec Total 1753 | 106 1061 166 420 Wait 229 | . 172 57 . Move 1363 | 79 809 62 413 Hop . | . . . . Pick Up 2 | . 2 . . Fast Attach 17 | 7 6 . 4 Attach 3 | . . 2 1 Detach 6 | . 3 2 1 Swap 2 | . 2 . . Drop 5 | . 4 . 1 Fire 126 | 20 63 43 . Melee . | . . . . Ram . | . . . . Kick . | . . . . Crush . | . . . . Escape Stasis . | . . . . Rewire . | . . . . Trap . | . . . . Miscellaneous . | . . . . Route ------- -11/Scrapyard -10/Materials (discovered 6 exits: *Mat x3 / *Min x2 / *Sub) -10/Subcaves (discovered 2 exits: Mat / *Rec) -9/Recycling (discovered 1 exit: [*Fac]) History --------- Turn | Location | Event 10 | -11/Scrapyard | Discovered new exit (range 16) 190 | -11/Scrapyard | Entered Materials 315 | -10/Materials | Build established: Mutant 427 | -10/Materials | Discovered new exit (range 16) 478 | -10/Materials | Discovered new exit (range 15) 733 | -10/Materials | Loaded intel: 8 terminal locations 797 | -10/Materials | Identified exit to Materials 850 | -10/Materials | Learned 2 Mines zone layouts 878 | -10/Materials | Discovered new exit (range 6) 892 | -10/Materials | Learned 2 Storage zone layouts 925 | -10/Materials | Identified exit to Mines 925 | -10/Materials | Identified exit to Subcaves 950 | -10/Materials | Loaded intel: 5 trap records 1032 | -10/Materials | Learned Storage trap positions 1859 | -10/Materials | Entered Subcaves 1860 | -10/Subcaves | Approached by a straggling Scientist 1860 | -10/Subcaves | Identified exit to Materials 1980 | -10/Subcaves | Discovered new exit (range 13) 1983 | -10/Subcaves | Core integrity fell below 50% 2131 | -10/Subcaves | Core integrity fell below 20% 2159 | -10/Subcaves | Lost 5 parts (1p1n1u2w) 2159 | -10/Subcaves | Entered Recycling 2585 | -9/Recycling | Discovered new exit (range 6) 2741 | -9/Recycling | Destroyed by Y-45 Defender with Heavy Assault Rifle Last Messages --------------- 02473_ Acquired Particle Cannon. 02474_ Dropped Hvy. EM Pulse Gun. 02482_ Connecting with Terminal... 02483_ R-06 Scavenger collects Hvy. EM Pulse Gun. 02486_ R-06 Scavenger inserts Hvy. EM Pulse Gun into recycling unit. 02488_ System corrupted: Heat flow error (+119). 02530_ Connecting with Recycling Unit... 02543_ Connecting with Terminal... 02585_ EXIT=FOUND 02646_ Connecting with Terminal... 02688_ Connecting with Recycling Unit... >>Retrieve(Components) Retrieving 3 components... Mni. Grenade Launcher Med. Armor Plating Visual Processing Unit 02738_ Y-45 Defender springs to life. 02738_ Critical hit (Burn: +37). Map ----- +----------------------------------------------------+ | ?????????????????????????## # | | ?????????????????????????## # | | ?????????????????????????####+###### | | ?????????????????????????#### ###### | | ???????????????????r???????## ###### | | ???????????????####???####### | | ???????????????####???####### | | ??????????????? r#### | | ????????????????? #### # | | ?????????????????? # | | ??????????????????? # | | ????????? ??### # | | ????## ?###+###+#### # | | ????## ?## # + | | ????## ### ! # # | | ????## ### |/ # # | | ????## +[ + # | | ????## #! % ] # ########+## # | | ????## # [ # #### # # | | ????## # # ###" """ +r# | | ????## # # ###T """ # # | | ????## ########### ###" """ # # | | ????## #### # # | | ????## #### """ # # | | ????## #### """ # # | | ????## @ + """ # + | | ????####### ######## # # | | ?????###### #####u######### """ # # | | ?????????## # ##?## """ # | | ?????????## # ##?## "?" # | | ?????????## # ##?## # | | ?????????## # ##?####+####r | | ???######## # ####### #### | | ???######## # ### ## ### | | ???## # + T | | ???## + ###### ### | | ???## Y#######+############## | | ???## ####### ######## | | ???## ###### ### !!# | | ???## ####### ###!!!## | | ???## ]!! | | ???## ### ##########"Y"############ | | ???####################"""############ | | ???###########???????#######?????????? | | ?????????????????????#######?????????? | | ?????????????????????????????????????? | | ?????????????????????????????????????? | | | | | | | +----------------------------------------------------+ Best States ------------- Heat Dissipation 25 Energy Generation 14 Energy Capacity 250 Matter Stores 300 Matter Capacity 300 Sight Range 16 Terrain Scan Density 10 Armor Coverage 150 Evasion (%) 40 Recoil Reduction 2 Item Schematics ----------------- None Robot Schematics ------------------ None Fabricated ------------ Nothing Repaired ---------- Nothing Studied --------- None Alien Tech Used ----------------- None Achievements -------------- None Challenges ------------ None Game ------ Seed PhysicsAssaultPlating Manual? 0 Play Time 00:16:54 Cumulative 60.4 hours Start 2026.07.15 @ 18:18:30 End 2026.07.15 @ 19:13:12 Sessions 5 Manual Loads 0 Difficulty Rogue Special Mode None Game No. 67 Rogue 67 Adventurer 0 Explorer 0 Win Type - Total 1 Types 1/0/0/0/0/0/0/0/0/0 Lore% 52 Gallery% 41 Achievement% 38 Wizard Run 0 Options --------- Layout 1 ASCII 0 Keyboard 1 Movement Numpad Keybinds 1 Fullscreen 2 Font 24/Smallcaps Map View 50x40 Zoom Use 0% Tactical HUD 1 Map Filters NONE Filters NONE Steam 1 RUN: f12c598f-eb24-4c48-937d-c66c8481e51b